[Event "72nd RUS-ch Higher League 2019"]
[Site "Yaroslavl"]
[Date "2019.06.27"]
[Round "1.26"]
[White "Sakaev, Konstantin"]
[Black "Galaktionov, Artem"]
[Result "1/2-1/2"]
[ECO "B12"]
[WhiteElo "2584"]
[BlackElo "2371"]
[Annotator "ChessBase"]
[PlyCount "104"]
[EventDate "2019.06.27"]
[EventType "swiss"]
[EventCountry "RUS"]
[SourceTitle "playchess.com"]
[Source "ChessBase"]
[SourceQuality "1"]
[TimeControl "40/5400+30:1800+30"]

1. e4 {[%emt 0:00:00]} c6 {[%emt 0:00:00]} 2. d4 {[%emt 0:00:00]} d5 {[%emt 0:00:00]} 3. e5 {[%emt 0:00:00]} Bf5 {[%emt 0:00:00]} 4. Nf3 {[%emt 0:00:14]} e6 {[%emt 0:00:00]} 5. Be2 {[%emt 0:00:19]} Ne7 {[%emt 0:00:09]} 6. O-O {[%emt 0:00:20]} Nd7 {[%emt 0:00:10]} 7. Nbd2 {[%emt 0:00:41]} Bg6 {[%emt 0:04:43]} 8. Nb3 {[%emt 0:00:49]} Nf5 {[%emt 0:00:07]} 9. a4 {[%emt 0:00:32]} Be7 {[%emt 0:03:39]} 10. g4 {[%emt 0:02:10]} Nh4 {[%emt 0:00:06]} 11. Nxh4 {[%emt 0:00:28]} Bxh4 {[%emt 0:00:04]} 12. f4 {[%emt 0:01:35]} f5 {[%emt 0:04:44]} 13. Bd3 {[%emt 0:04:18]} O-O {[%emt 0:11:32]} 14. g5 {[%emt 0:03:02]} h6 {[%emt 0:00:29]} 15. gxh6 {[%emt 0:09:43]} gxh6 {[%emt 0:00:13]} 16. Rf3 {[%emt 0:16:03]} Be7 {[%emt 0:11:38]} 17. Rh3 {[%emt 0:01:45]} h5 {[%emt 0:00:17]} 18. Be3 {[%emt 0:03:11]} h4 {[%emt 0:12:23]} 19. Kh1 {[%emt 0:11:03]} Kf7 {[%emt 0:00:24]} 20. Be2 {[%emt 0:00:27]} Rh8 {[%emt 0:01:46]} 21. Nd2 {[%emt 0:12:40]} c5 {[%emt 0:02:12]} 22. Nf3 {[%emt 0:01:01]} cxd4 {[%emt 0:04:37]} 23. Bxd4 {[%emt 0:00:41]} Rc8 {[%emt 0:01:22]} 24. c3 {[%emt 0:06:26]} Nc5 {[%emt 0:06:50]} 25. Bxc5 {[%emt 0:00:13]} Rxc5 {[%emt 0:00:02]} 26. Nd4 {[%emt 0:00:10]} Qf8 {[%emt 0:02:18]} 27. Qd2 {[%emt 0:07:37]} Qh6 {[%emt 0:00:30]} 28. Rd1 {[%emt 0:02:26]} Rd8 {[%emt 0:02:41]} 29. Nf3 {[%emt 0:04:18]} Rh8 {[%emt 0:03:52]} 30. Nd4 {[%emt 0:00:37]} Rd8 {[%emt 0:00:07]} 31. Nf3 {[%emt 0:00:04]} Rh8 {[%emt 0:00:06]} 32. Ng5+ {[%emt 0:04:30]} Bxg5 {[%emt 0:00:13]} 33. fxg5 {[%emt 0:00:03]} Qg7 {[%emt 0:00:47]} 34. Qd4 {[%emt 0:01:02]} b6 {[%emt 0:00:13]} 35. b4 {[%emt 0:02:21]} Rc7 {[%emt 0:00:40]} 36. c4 {[%emt 0:01:39]} Rd7 {[%emt 0:09:13]} 37. Qf4 {[%emt 0:00:23]} Rhd8 {[%emt 0:06:44]} 38. Rhd3 {[%emt 0:02:55]} Ke7 {[%emt 0:01:00]} 39. cxd5 {[%emt 0:02:50]} Rxd5 {[%emt 0:00:06]} 40. Rxd5 {[%emt 0:00:00]} Rxd5 {[%emt 0:00:00]} 41. Rxd5 {[%emt 0:01:05]} exd5 {[%emt 0:00:05]} 42. Ba6 {[%emt 0:02:11]} Qh8 {[%emt 0:02:24]} 43. a5 {[%emt 0:09:31]} Ke6 {[%emt 0:09:18]} 44. axb6 {[%emt 0:03:02]} axb6 {[%emt 0:00:03]} 45. Qd4 {[%emt 0:02:01]} Qxe5 {[%emt 0:00:21]} 46. Bc8+ {[%emt 0:01:09]} Kd6 {[%emt 0:00:03]} 47. Qxb6+ {[%emt 0:00:06]} Ke7 {[%emt 0:00:01]} 48. Qxg6 {[%emt 0:00:59]} Qe4+ {[%emt 0:00:14]} 49. Kg1 {[%emt 0:00:05]} Qe3+ {[%emt 0:00:12]} 50. Kf1 {[%emt 0:00:11]} Qf3+ {[%emt 0:00:04]} 51. Ke1 {[%emt 0:00:11]} Qe3+ {[%emt 0:00:05]} 52. Kf1 {[%emt 0:00:04]} Qf3+ {[%emt 0:00:04]} 1/2-1/2

[Event "72nd RUS-ch Higher League 2019"]
[Site "Yaroslavl"]
[Date "2019.06.27"]
[Round "1.27"]
[White "Lesovoi, Evgenij"]
[Black "Romanov, Evgeny"]
[Result "0-1"]
[ECO "D02"]
[WhiteElo "2366"]
[BlackElo "2577"]
[Annotator "ChessBase"]
[PlyCount "74"]
[EventDate "2019.06.27"]
[EventType "swiss"]
[EventCountry "RUS"]
[SourceTitle "playchess.com"]
[Source "ChessBase"]
[SourceQuality "1"]
[TimeControl "40/5400+30:1800+30"]

1. d4 {[%emt 0:00:00]} d5 {[%emt 0:01:34]} 2. Nf3 {[%emt 0:00:11]} e6 {[%emt 0:00:19]} 3. c4 {[%emt 0:00:53]} Bb4+ {[%emt 0:00:14]} 4. Bd2 {[%emt 0:01:39]} a5 {[%emt 0:00:10]} 5. Qc2 {[%emt 0:01:47]} Nf6 {[%emt 0:02:55]} 6. a3 {[%emt 0:03:09]} Be7 {[%emt 0:04:50]} 7. Nc3 {[%emt 0:04:16]} b6 {[%emt 0:04:54]} 8. e4 {[%emt 0:07:29]} dxe4 {[%emt 0:01:31]} 9. Nxe4 {[%emt 0:00:06]} Bb7 {[%emt 0:00:09]} 10. Bd3 {[%emt 0:00:24]} Nbd7 {[%emt 0:00:18]} 11. O-O {[%emt 0:05:42]} c5 {[%emt 0:11:54]} 12. Bc3 {[%emt 0:12:40]} cxd4 {[%emt 0:05:03]} 13. Nxd4 {[%emt 0:02:49]} Nc5 {[%emt 0:11:46]} 14. Nxc5 {[%emt 0:01:01]} Bxc5 {[%emt 0:00:55]} 15. Nb5 {[%emt 0:15:42]} Ng4 {[%emt 0:10:16]} 16. g3 {[%emt 0:08:17]} Qg5 {[%emt 0:09:21]} 17. Be4 {[%emt 0:02:05]} Qh5 {[%emt 0:14:57]} 18. h4 {[%emt 0:00:17]} Bxe4 {[%emt 0:00:13]} 19. Qxe4 {[%emt 0:00:06]} O-O {[%emt 0:00:09]} 20. Kg2 {[%emt 0:02:52]} a4 {[%emt 0:02:18]} 21. Rae1 {[%emt 0:01:04]} Qg6 {[%emt 0:02:54]} 22. Qf4 {[%emt 0:06:01]} Rad8 {[%emt 0:02:26]} 23. Re4 {[%emt 0:01:59]} h5 {[%emt 0:05:31]} 24. Re2 {[%emt 0:00:10]} Rd3 {[%emt 0:00:56]} 25. Qg5 {[%emt 0:06:24]} Kh7 {[%emt 0:01:28]} 26. Qf4 {[%emt 0:03:41]} Rfd8 {[%emt 0:02:51]} 27. Rfe1 {[%emt 0:00:29]} Kg8 {[%emt 0:00:28]} 28. Qg5 {[%emt 0:01:27]} Kh7 {[%emt 0:01:12]} 29. Qf4 {[%emt 0:00:01]} Rd1 {[%emt 0:00:55]} 30. Qf3 {[%emt 0:05:08]} R8d3 {[%emt 0:00:41]} 31. Qf4 {[%emt 0:02:02]} e5 {[%emt 0:00:16]} 32. Qg5 {[%emt 0:00:53]} Qc6+ {[%emt 0:00:42]} 33. Kh3 {[%emt 0:02:14]} Rxe1 {[%emt 0:00:48]} 34. Qxh5+ {[%emt 0:00:57]} Kg8 {[%emt 0:00:56]} 35. Rxe1 {[%emt 0:00:24]} Bxf2 {[%emt 0:00:28]} 36. Kxg4 {[%emt 0:02:43]} Rxg3+ {[%emt 0:00:23]} 37. Kf5 {[%emt 0:00:04]} g6+ {[%emt 0:00:23] Ke4} 0-1

[Event "72nd RUS-ch Higher League 2019"]
[Site "Yaroslavl"]
[Date "2019.06.27"]
[Round "1.28"]
[White "Rozum, Ivan"]
[Black "Samojlov, Anton"]
[Result "1-0"]
[ECO "E62"]
[WhiteElo "2572"]
[BlackElo "2350"]
[Annotator "ChessBase"]
[PlyCount "101"]
[EventDate "2019.06.27"]
[EventType "swiss"]
[EventCountry "RUS"]
[SourceTitle "playchess.com"]
[Source "ChessBase"]
[SourceQuality "1"]
[TimeControl "40/5400+30:1800+30"]

1. d4 {[%emt 0:00:00]} Nf6 {[%emt 0:00:02]} 2. c4 {[%emt 0:00:00]} g6 {[%emt 0:00:13]} 3. g3 {[%emt 0:01:16]} Bg7 {[%emt 0:00:18]} 4. Bg2 {[%emt 0:00:01]} O-O {[%emt 0:00:36]} 5. Nc3 {[%emt 0:00:03]} d6 {[%emt 0:00:20]} 6. Nf3 {[%emt 0:00:11]} Nc6 {[%emt 0:01:32]} 7. O-O {[%emt 0:00:08]} Bf5 {[%emt 0:00:10]} 8. b3 {[%emt 0:02:14]} e5 {[%emt 0:01:29]} 9. d5 {[%emt 0:03:18]} Ne7 {[%emt 0:01:02]} 10. Ne1 {[%emt 0:00:33]} Ne8 {[%emt 0:00:18]} 11. e4 {[%emt 0:01:29]} Bd7 {[%emt 0:00:10]} 12. Bd2 {[%emt 0:01:46]} f5 {[%emt 0:03:03]} 13. exf5 {[%emt 0:00:08]} gxf5 {[%emt 0:01:41]} 14. Nd3 {[%emt 0:04:16]} f4 {[%emt 0:15:42]} 15. Ne4 {[%emt 0:03:22]} Nf5 {[%emt 0:13:39]} 16. Rc1 {[%emt 0:08:00]} Nf6 {[%emt 0:12:06]} 17. gxf4 {[%emt 0:08:11]} Nxe4 {[%emt 0:04:57]} 18. Bxe4 {[%emt 0:00:10]} Qh4 {[%emt 0:00:21]} 19. Kh1 {[%emt 0:07:39]} exf4 {[%emt 0:14:45]} 20. Bxf4 {[%emt 0:07:57]} Rae8 {[%emt 0:12:40]} 21. Bg2 {[%emt 0:05:15]} Nd4 {[%emt 0:06:11]} 22. Bg3 {[%emt 0:01:04]} Qg5 {[%emt 0:01:30]} 23. Re1 {[%emt 0:08:35]} Bg4 {[%emt 0:03:04]} 24. f3 {[%emt 0:00:11]} Rxe1+ {[%emt 0:01:32]} 25. Nxe1 {[%emt 0:00:14]} Bf5 {[%emt 0:03:18]} 26. f4 {[%emt 0:01:56]} Qe7 {[%emt 0:00:31]} 27. Nf3 {[%emt 0:05:38]} Ne2 {[%emt 0:00:53]} 28. Qe1 {[%emt 0:00:15]} Re8 {[%emt 0:00:26]} 29. Rd1 {[%emt 0:00:09]} Bc2 {[%emt 0:01:23]} 30. Rd2 {[%emt 0:00:33]} Bc3 {[%emt 0:00:24]} 31. Rxe2 {[%emt 0:00:49]} Qxe2 {[%emt 0:00:35]} 32. Qxc3 {[%emt 0:00:02]} Re3 {[%emt 0:00:34]} 33. Qd2 {[%emt 0:04:24]} Be4 {[%emt 0:00:18]} 34. Qxe2 {[%emt 0:00:21]} Rxe2 {[%emt 0:00:02]} 35. a4 {[%emt 0:03:10]} Rb2 {[%emt 0:00:34]} 36. Kg1 {[%emt 0:00:01]} a5 {[%emt 0:00:32]} 37. Bh4 {[%emt 0:04:32]} Rb1+ {[%emt 0:00:30]} 38. Kf2 {[%emt 0:00:22]} Rb2+ {[%emt 0:00:15]} 39. Ke3 {[%emt 0:01:48]} Bc2 {[%emt 0:00:38]} 40. Nd2 {[%emt 0:00:00]} Bxb3 {[%emt 0:00:00]} 41. Bf6 {[%emt 0:06:32]} Ra2 {[%emt 0:00:42]} 42. Nxb3 {[%emt 0:00:44]} Rxg2 {[%emt 0:00:51]} 43. Nxa5 {[%emt 0:00:46]} b6 {[%emt 0:02:13]} 44. Nc6 {[%emt 0:01:16]} Rxh2 {[%emt 0:00:34]} 45. Bd8 {[%emt 0:00:11]} Ra2 {[%emt 0:00:20]} 46. Bxc7 {[%emt 0:01:06]} Rxa4 {[%emt 0:00:14]} 47. Bxd6 {[%emt 0:02:22]} Rxc4 {[%emt 0:08:06]} 48. Be7 {[%emt 0:00:31]} Rc3+ {[%emt 0:01:57]} 49. Kd2 {[%emt 0:00:38]} Rb3 {[%emt 0:02:28]} 50. d6 {[%emt 0:01:09]} Rb5 {[%emt 0:00:21]} 51. Ne5 {[%emt 0:00:17]} 1-0

[Event "72nd RUS-ch Higher League 2019"]
[Site "Yaroslavl"]
[Date "2019.06.27"]
[Round "1.29"]
[White "Ibadov, Dashgyn"]
[Black "Bocharov, Ivan"]
[Result "1/2-1/2"]
[ECO "B94"]
[WhiteElo "2298"]
[BlackElo "2559"]
[Annotator "ChessBase"]
[PlyCount "82"]
[EventDate "2019.06.27"]
[EventType "swiss"]
[EventCountry "RUS"]
[SourceTitle "playchess.com"]
[Source "ChessBase"]
[SourceQuality "1"]
[TimeControl "40/5400+30:1800+30"]

1. e4 {[%emt 0:00:00]} c5 {[%emt 0:00:00]} 2. Nf3 {[%emt 0:00:00]} d6 {[%emt 0:00:00]} 3. d4 {[%emt 0:00:00]} cxd4 {[%emt 0:00:03]} 4. Nxd4 {[%emt 0:00:00]} Nf6 {[%emt 0:00:03]} 5. Nc3 {[%emt 0:00:05]} a6 {[%emt 0:00:03]} 6. Bg5 {[%emt 0:00:26]} Nbd7 {[%emt 0:00:25]} 7. f4 {[%emt 0:00:26]} Qc7 {[%emt 0:01:44]} 8. Qf3 {[%emt 0:00:29]} b5 {[%emt 0:00:47]} 9. O-O-O {[%emt 0:05:06]} Bb7 {[%emt 0:00:19]} 10. g4 {[%emt 0:04:46]} e6 {[%emt 0:03:53]} 11. a3 {[%emt 0:08:25]} Rc8 {[%emt 0:02:52]} 12. Bxf6 {[%emt 0:08:28]} gxf6 {[%emt 0:02:20]} 13. Kb1 {[%emt 0:01:47]} Nc5 {[%emt 0:04:46]} 14. Bd3 {[%emt 0:11:42]} Qb6 {[%emt 0:05:10]} 15. f5 {[%emt 0:05:16]} e5 {[%emt 0:04:27]} 16. Nb3 {[%emt 0:02:44]} Na4 {[%emt 0:01:52]} 17. Nd5 {[%emt 0:03:07]} Bxd5 {[%emt 0:00:01]} 18. exd5 {[%emt 0:00:07]} h5 {[%emt 0:23:24]} 19. g5 {[%emt 0:06:23]} fxg5 {[%emt 0:00:43]} 20. f6 {[%emt 0:00:14]} g4 {[%emt 0:00:57]} 21. Qf5 {[%emt 0:04:17]} Kd8 {[%emt 0:00:55]} 22. Rhe1 {[%emt 0:01:02]} Rc7 {[%emt 0:16:17]} 23. Re4 {[%emt 0:05:43]} Nc5 {[%emt 0:02:05]} 24. Rb4 {[%emt 0:04:40]} Nxb3 {[%emt 0:06:01]} 25. Rxb3 {[%emt 0:02:49]} Qd4 {[%emt 0:00:41]} 26. Rb4 {[%emt 0:03:15]} Qxd5 {[%emt 0:00:21]} 27. Be2 {[%emt 0:04:23]} Qe6 {[%emt 0:00:44]} 28. Qe4 {[%emt 0:01:16]} Qxf6 {[%emt 0:00:46]} 29. Qa8+ {[%emt 0:01:27]} Ke7 {[%emt 0:00:06]} 30. Qxa6 {[%emt 0:00:48]} Bh6 {[%emt 0:00:55]} 31. Rxb5 {[%emt 0:00:52]} Rd8 {[%emt 0:03:10]} 32. Qb6 {[%emt 0:07:11]} Rdd7 {[%emt 0:02:19]} 33. a4 {[%emt 0:01:45]} Qf5 {[%emt 0:05:05]} 34. Bd3 {[%emt 0:00:48]} Qf3 {[%emt 0:00:46]} 35. Re1 {[%emt 0:01:42]} Bf4 {[%emt 0:03:24]} 36. Qb8 {[%emt 0:03:24]} Qf2 {[%emt 0:01:33]} 37. Rf1 {[%emt 0:00:47]} Qxh2 {[%emt 0:01:31]} 38. Qg8 {[%emt 0:00:34]} Rd8 {[%emt 0:02:09]} 39. Qg7 {[%emt 0:01:57]} Qh4 {[%emt 0:04:02]} 40. Rxf4 {[%emt 0:00:00]} exf4 {[%emt 0:00:00]} 41. Re5+ {[%emt 0:05:30]} dxe5 1/2-1/2

[Event "72nd RUS-ch Higher League 2019"]
[Site "Yaroslavl"]
[Date "2019.06.28"]
[Round "2.5"]
[White "Triapishko, Alexandr"]
[Black "Esipenko, Andrey"]
[Result "0-1"]
[ECO "A06"]
[WhiteElo "2512"]
[BlackElo "2611"]
[Annotator "RC"]
[PlyCount "80"]
[EventDate "2019.06.27"]
[EventType "swiss"]
[EventCountry "RUS"]
[SourceTitle "playchess.com"]
[Source "ChessBase"]
[SourceQuality "1"]
[TimeControl "40/5400+30:1800+30"]

1. Nf3 {[%emt 0:00:00]} d5 {[%emt 0:00:00]} 2. g3 {[%emt 0:00:00]} g6 {[%emt 0:00:20]} 3. Bg2 {[%emt 0:01:14]} Bg7 {[%emt 0:00:06]} 4. d4 {[%emt 0:01:27]} Nf6 {[%emt 0:00:17]} 5. O-O {[%emt 0:01:53]} O-O {[%emt 0:00:12]} 6. Nbd2 {[%emt 0:07:33]} c5 {[%emt 0:00:28]} 7. dxc5 {[%emt 0:05:45]} Qc7 {[%emt 0:00:04]} 8. Nb3 {[%emt 0:15:20]} e5 {[%emt 0:00:09]} 9. e4 {[%emt 0:14:10]} dxe4 {[%emt 0:00:08]} 10. Ng5 {[%emt 0:00:49]} Rd8 {[%emt 0:30:55]} 11. Qe2 {[%emt 0:09:18]} Nc6 {[%emt 0:00:39]} 12. Nxe4 {[%emt 0:14:01]} Nxe4 {[%emt 0:00:08]} 13. Qxe4 {[%emt 0:02:02]} Be6 {[%emt 0:02:22]} 14. c3 {[%emt 0:04:40]} a5 {[%emt 0:13:53]} 15. Qh4 {[%emt 0:05:14]} f5 {[%emt 0:07:34]} 16. Bg5 {[%emt 0:04:13]} Rd7 {[%emt 0:03:00]} 17. Rfd1 {[%emt 0:07:11]} a4 {[%emt 0:02:21]} 18. Nd2 {[%emt 0:00:04]} e4 {[%emt 0:00:20]} 19. Nxe4 {[%emt 0:01:45]} fxe4 {[%emt 0:01:30]} 20. Qxe4 {[%emt 0:00:20]} Rxd1+ {[%emt 0:02:26]} 21. Rxd1 {[%emt 0:00:03]} Bxa2 {[%emt 0:03:52]} 22. Bh3 {[%emt 0:01:31]} Qf7 {[%emt 0:04:59]} 23. Rd7 {[%emt 0:01:22]} Re8 {[%emt 0:00:11]} 24. Rxf7 {[%emt 0:01:25]} Rxe4 {[%emt 0:00:08]} 25. Rxb7 {[%emt 0:00:36]} Re1+ {[%emt 0:02:08]} 26. Kg2 {[%emt 0:00:01]} Bd5+ {[%emt 0:04:25]} 27. f3 {[%emt 0:00:00]} Ne5 {[%emt 0:00:58]} 28. Rb8+ {[%emt 0:01:16]} Kf7 {[%emt 0:00:05]} 29. Bf4 {[%emt 0:00:38]} Bxf3+ {[%emt 0:05:46]} 30. Kf2 {[%emt 0:00:01]} Re2+ {[%emt 0:00:10]} 31. Kg1 {[%emt 0:00:25]} Bf8 {[%emt 0:01:11]} 32. Bxe5 {[%emt 0:01:09]} Rxe5 {[%emt 0:00:07]} 33. Kf2 {[%emt 0:00:11]} Bc6 {[%emt 0:01:09]} 34. Rc8 {[%emt 0:00:48]} Bxc5+ {[%emt 0:00:37]} 35. Kf1 {[%emt 0:00:01]} Bb5+ {[%emt 0:01:52]} 36. Kg2 {[%emt 0:00:03]} Re2+ {[%emt 0:00:16]} 37. Kf3 {[%emt 0:00:15]} Rf2+ {[%emt 0:00:08]} 38. Ke4 {[%emt 0:00:10]} Be7 {[%emt 0:00:06]} 39. c4 {[%emt 0:01:17]} Ba6 {[%emt 0:00:07]} 40. Be6+ {[%emt 0:00:00]} Kf6 {[%emt 0:00:00]} 0-1

[Event "72nd RUS-ch Higher League 2019"]
[Site "Yaroslavl"]
[Date "2019.06.28"]
[Round "2.10"]
[White "Drygalov, Andrey"]
[Black "Najer, Evgeniy"]
[Result "1/2-1/2"]
[ECO "B13"]
[WhiteElo "2494"]
[BlackElo "2678"]
[Annotator "RC"]
[PlyCount "108"]
[EventDate "2019.06.27"]
[EventType "swiss"]
[EventCountry "RUS"]
[SourceTitle "playchess.com"]
[Source "ChessBase"]
[SourceQuality "1"]
[TimeControl "40/5400+30:1800+30"]

1. e4 {[%emt 0:00:00]} c6 {[%emt 0:03:24]} 2. d4 {[%emt 0:00:00]} d5 {[%emt 0:00:07]} 3. exd5 {[%emt 0:00:02]} cxd5 {[%emt 0:00:05]} 4. Bd3 {[%emt 0:00:06]} Nc6 {[%emt 0:00:41]} 5. c3 {[%emt 0:00:04]} Nf6 {[%emt 0:00:07]} 6. Bf4 {[%emt 0:00:06]} Bg4 {[%emt 0:00:17]} 7. Qb3 {[%emt 0:00:07]} Qd7 {[%emt 0:00:09]} 8. Nd2 {[%emt 0:00:09]} e6 {[%emt 0:00:20]} 9. Ngf3 {[%emt 0:00:04]} Bd6 {[%emt 0:00:47]} 10. Bxd6 {[%emt 0:00:23]} Qxd6 {[%emt 0:00:06]} 11. O-O {[%emt 0:00:03]} O-O {[%emt 0:00:44]} 12. Rfe1 {[%emt 0:00:03]} Rab8 {[%emt 0:01:27]} 13. Ne5 {[%emt 0:00:16]} Bh5 {[%emt 0:09:10]} 14. Re3 {[%emt 0:00:06]} Qc7 {[%emt 0:06:39]} 15. a4 {[%emt 0:07:28]} Nxe5 {[%emt 0:01:52]} 16. Rxe5 {[%emt 0:00:20]} Bg6 {[%emt 0:05:15]} 17. Bxg6 {[%emt 0:02:46]} hxg6 {[%emt 0:00:04]} 18. Re2 {[%emt 0:06:05]} Rfd8 {[%emt 0:13:53]} 19. Nf3 {[%emt 0:07:31]} Rd6 {[%emt 0:01:06]} 20. Ne5 {[%emt 0:04:53]} Ra6 {[%emt 0:00:16]} 21. Ree1 {[%emt 0:08:46]} Ne4 {[%emt 0:02:53]} 22. Nd3 {[%emt 0:02:45]} Qd8 {[%emt 0:07:57]} 23. Qc2 {[%emt 0:01:25]} Qg5 {[%emt 0:06:43]} 24. f3 {[%emt 0:05:43]} Qd2 {[%emt 0:09:08]} 25. Re2 {[%emt 0:04:23]} Qxc2 {[%emt 0:00:59]} 26. Rxc2 {[%emt 0:00:05]} Nd6 {[%emt 0:02:07]} 27. Kf2 {[%emt 0:08:28]} g5 {[%emt 0:01:20]} 28. Nc5 {[%emt 0:15:34]} Rc6 {[%emt 0:00:11]} 29. Nd3 {[%emt 0:00:43]} f6 {[%emt 0:15:27]} 30. Re2 {[%emt 0:03:02]} Kf7 {[%emt 0:00:07]} 31. Rae1 {[%emt 0:01:44]} Ne8 {[%emt 0:01:08]} 32. Nc5 {[%emt 0:03:01]} Nc7 {[%emt 0:00:35]} 33. a5 {[%emt 0:00:42]} b6 {[%emt 0:01:33]} 34. axb6 {[%emt 0:00:26]} axb6 {[%emt 0:00:05]} 35. Nd3 {[%emt 0:00:04]} Ra8 {[%emt 0:01:03]} 36. Rd1 {[%emt 0:02:46]} Rd6 {[%emt 0:01:01]} 37. Ree1 {[%emt 0:01:06]} Rdd8 {[%emt 0:00:25]} 38. Ra1 {[%emt 0:01:04]} Nb5 {[%emt 0:02:55]} 39. Nb4 {[%emt 0:01:11]} Nd6 {[%emt 0:00:36]} 40. Ke2 {[%emt 0:00:00]} Nc4 {[%emt 0:00:00]} 41. b3 {[%emt 0:04:51]} Nd6 {[%emt 0:05:59]} 42. Kd3 {[%emt 0:00:20]} Nf5 {[%emt 0:04:27]} 43. Rad1 {[%emt 0:04:21]} Rh8 {[%emt 0:00:51]} 44. h3 {[%emt 0:00:56]} Nh4 {[%emt 0:05:43]} 45. Rd2 {[%emt 0:00:49]} Ng6 {[%emt 0:00:19]} 46. Kc2 {[%emt 0:00:05]} Nf4 {[%emt 0:02:17]} 47. Kb2 {[%emt 0:00:15]} Ra7 {[%emt 0:01:27]} 48. Nc6 {[%emt 0:01:20]} Rc7 {[%emt 0:00:52]} 49. Nb4 {[%emt 0:00:03]} Rhc8 {[%emt 0:00:24]} 50. Rc2 {[%emt 0:01:43]} Ra8 {[%emt 0:01:55]} 51. Rh1 {[%emt 0:01:48]} Rca7 {[%emt 0:01:15]} 52. Rd2 {[%emt 0:01:01]} Rc8 {[%emt 0:02:43]} 53. Re1 {[%emt 0:01:27]} Rac7 {[%emt 0:00:50]} 54. Rc2 {[%emt 0:00:15]} Ra7 {[%emt 0:04:19]} 1/2-1/2